fUSD/lending_fUSD_20240804
["ID","MTS","AMOUNT","RATE_DAILY","PERIOD"]
[334138293,1722791477430,-500.0,0.00023178,9]
[334138294,1722791477440,-501.52044566,0.00023178,9]
[334138295,1722791477450,-500.0,0.00023178,9]
[334138296,1722791477460,-500.0,0.00023178,9]
[334138297,1722791477470,-380.82294608,0.00023178,9]
[334138298,1722791477484,-119.17705392,0.00023178,9]
[334138299,1722791477495,-500.0,0.00023178,9]
[334138300,1722791477505,-500.0,0.00023178,9]
[334138301,1722791477515,-327.28553882,0.00023178,9]
[334138302,1722791477527,-172.71446118,0.00023178,9]
[334138303,1722791477536,-500.0,0.00023178,9]
[334138304,1722791477546,-500.0,0.00023178,9]
[334138305,1722791477555,-294.09,0.00023178,9]
[334138306,1722791477565,-320.29553882,0.00023178,9]
[334138307,1722791477923,-179.70446118,0.00023178,9]
[334138308,1722791477933,-629.93,0.00023178,9]
[334138309,1722791477943,-501.48830087,0.00023178,9]
[334138310,1722791477953,-500.0,0.00023178,9]
[334138311,1722791477963,-500.0,0.00023178,9]
[334138312,1722791477978,-500.0,0.00023178,9]
[334138313,1722791477988,-500.0,0.00023178,9]
[334138314,1722791477998,-285.5,0.00023178,9]
[334138315,1722791478008,-507.38,0.00023178,9]
[334138316,1722791478020,-500.0,0.00023178,9]
[334138317,1722791478031,-500.0,0.00023178,9]
[334138318,1722791478041,-500.0,0.00023178,9]
[334138319,1722791478051,-500.0,0.00023178,9]
[334138320,1722791478061,-608.12,0.00023178,9]
[334138321,1722791478070,-500.0,0.00023178,9]
[334138322,1722791478087,-816.01,0.00023178,9]
[334138323,1722791478097,-954.13,0.00023178,9]
[334138324,1722791478107,-500.0,0.00023178,9]
[334138325,1722791478117,-500.0,0.00023178,9]
[334138326,1722791478129,-506.22,0.00023178,9]
[334138327,1722791478139,-500.0,0.00023178,9]
[334138328,1722791478149,-500.0,0.00023178,9]
[334138329,1722791478160,-506.73,0.00023178,9]
[334138330,1722791478170,-501.96441392,0.00023178,9]
[334138331,1722791478180,-500.0,0.00023178,9]
[334138332,1722791478190,-502.54,0.00023178,9]
[334138333,1722791478200,-500.0,0.00023178,9]
[334138334,1722791478211,-500.0,0.00023178,9]
[334138335,1722791478221,-500.0,0.00023178,9]
[334138336,1722791478231,-500.0,0.00023178,9]
[334138337,1722791478240,-500.0,0.00023178,9]
[334138338,1722791478250,-500.0,0.00023178,9]
[334138339,1722791478259,-500.0,0.00023178,9]
[334138340,1722791478268,-500.0,0.00023178,9]
[334138341,1722791478278,-214.69535516,0.00023178,9]
[334138342,1722791481437,800.0,0.00026877,120]
[334138344,1722791484328,254.46,0.00025029,120]
[334138346,1722791528010,800.0,0.00026877,120]
[334138347,1722791546629,1340.7865663,0.000104,2]
[334138348,1722791546663,427.11187861,0.000104,2]
[334138349,1722791546693,4029.22085118,0.000104,2]
[334138350,1722791546725,418.99640391,0.000104,2]
[334138351,1722791547069,3807.78139966,0.000105,2]
[334138352,1722791547102,3653.93778457,0.000105,2]
[334138354,1722791583230,800.0,0.00026877,120]
[334138355,1722791593985,500.0,0.00026646,120]
[334138356,1722791598252,1000.0,0.00026433,120]
[334138357,1722791598788,1000.0,0.00026783,120]
[334138358,1722791630765,500.0,0.00026433,120]
[334138359,1722791643623,800.0,0.00026877,120]
[334138360,1722791648439,200.0,0.00026646,120]
[334138362,1722791708686,800.0,0.00026877,120]
[334138363,1722791767912,800.0,0.00026877,120]
[334138366,1722791826808,152.34,0.00026877,120]
[334138367,1722791848634,10000.0,0.00027,120]
[334138368,1722791863795,6179.5,0.00027,120]
[334138369,1722792195007,1000.0,0.00026453,120]
[334138370,1722792203856,500.0,0.00026453,120]
[334138371,1722792222868,200.0,0.00026667,120]
[334138372,1722792373243,1000.0,0.00023013,60]
[334138373,1722792373509,443.91,0.00023095,60]
[334138395,1722792480847,2999.2385037,0.0001,2]
[334138396,1722792518263,480.34340286,0.0001,2]
[334138397,1722792519459,676.15793712,0.0001,2]
[334138399,1722792521233,692.66620014,0.0001,2]
[334138400,1722792532839,227.61995131,0.0001,2]
[334138420,1722792583290,-300.0,0.00010499,2]
[334138421,1722792583329,-5348.82023851,0.000105,2]
[334138422,1722792583370,-439.42199825,0.000105,2]
[334138423,1722792583407,-939.62425895,0.00010567,2]
[334138424,1722792583472,-5484.37574105,0.00010567,2]
[334138425,1722792583517,-819.31869812,0.000109,2]
[334138426,1722792583554,-323.20702696,0.00010999,2]
[334138427,1722792583603,-400.96502958,0.00011,2]
[334138428,1722792583667,-7027.86649571,0.00011,2]
[334138429,1722792583725,-619.15011192,0.00011,2]
[334138430,1722792583887,-7027.86649571,0.00011,2]
[334138463,1722792633622,-153.06,0.0001099,2]
[334138464,1722792633632,-676.64036207,0.00011,2]
[334138465,1722792633644,-10909.06374531,0.00011,2]
[334138466,1722792633710,-976.69261047,0.00011,2]
[334138467,1722792633722,-635.97483763,0.00011,2]
[334138468,1722792633734,-531.17276182,0.00011,2]
[334138469,1722792633745,-570.27129593,0.00011,2]
[334138470,1722792633756,-510.45804069,0.00011,2]
[334138471,1722792633767,-883.54995,0.00011,2]
[334138472,1722792633779,-846.47,0.00011,2]
[334138473,1722792633790,-350.2299999,0.00011,2]
[334138474,1722792633805,-5750.20303,0.00011,2]
[334138475,1722792633816,-5855.7499,0.00011,2]
[334138476,1722792633828,-2027.35533,0.00011,2]
[334138490,1722792634254,-1165.66,0.00011,2]
[334138491,1722792634276,-11935.23239639,0.00011,2]
[334138492,1722792634290,-11506.71936319,0.00011,2]
[334138494,1722792634306,-886.93505,0.00011,2]
[334138496,1722792634319,-291.53,0.00011,2]
[334138498,1722792634338,-1809.25360766,0.00011,2]
[334138510,1722792638103,-486.14080715,0.000109,2]
[334138511,1722792638116,-4260.43330605,0.000109,2]
[334138512,1722792638126,-546.21246542,0.000109,2]
[334138513,1722792638136,-5595.15436535,0.00011,2]
[334138514,1722792638148,-7499.96446104,0.00011,2]
[334138515,1722792638159,-1090.41617776,0.00011,2]
[334138516,1722792638171,-3483.47384749,0.00011,2]
[334138517,1722792638184,-58499.99999999,0.00011,2]
[334138518,1722792638200,-536.56516991,0.00011,2]
[334138519,1722792638212,-420.0,0.00011,2]
[334138520,1722792638225,-1500.0,0.00011,2]
[334138521,1722792638299,-684730.73270375,0.00011,2]
[334138525,1722792639849,-900.0,0.00011,2]
[334138526,1722792639861,-25713.75884208,0.00011,2]
[334138527,1722792639873,-13695.0,0.00011,2]
[334138528,1722792639884,-29168.0,0.00011,2]
[334138529,1722792639897,-424.5,0.00011,2]
[334138530,1722792639909,-1077.71731273,0.00011,2]
[334138531,1722792639921,-5200.0,0.00011,2]
[334138532,1722792639932,-442.77599999,0.00011,2]
[334138537,1722792640394,-62425.21152852,0.00011,2]
[334138538,1722792640405,-308.43272786,0.00011,2]
[334138539,1722792640419,-470.786248,0.00011,2]
[334138540,1722792640434,-1751.7,0.00011,2]
[334138541,1722792640452,-8122.4648584,0.00011,2]
[334138542,1722792640477,-1377.35000001,0.00011,2]
[334138543,1722792640489,-113974.28768627,0.00011,2]
[334138544,1722792640504,-62721.19962848,0.00011,2]
[334138545,1722792640537,-8265.58749999,0.00011,2]
[334138546,1722792640551,-933.43431332,0.00011,2]
[334138547,1722792640605,-5184.20181618,0.00011,2]
[334138548,1722792640617,-2762.38567655,0.00011,2]
[334138549,1722792640629,-2633.837495,0.00011,2]
[334138550,1722792640642,-2330.693685,0.00011,2]
[334138551,1722792640654,-2465.903535,0.00011,2]
[334138552,1722792640666,-1339.65,0.00011,2]
[334138553,1722792640678,-19410.65902386,0.00011,2]
[334138554,1722792640727,-5849.34649038,0.00011,2]
[334138555,1722792640911,-895.98299826,0.00011,2]
[334138556,1722792641149,-1765.90715,0.00011,2]
[334138557,1722792641161,-2588.1586786,0.00011,2]
[334138558,1722792641172,-384046.48486257,0.00011,2]
[334138559,1722792641184,-2854.47934693,0.00011,2]
[334138560,1722792641204,-271.88511308,0.00011,2]
[334138650,1722792643172,-7464.61812972,0.00011,2]
[334138652,1722792643190,-3090.37757266,0.00011,2]
[334138654,1722792643203,-13546.9334,0.00011,2]
[334138658,1722792643334,-10093.90488065,0.00011,2]
[334138659,1722792643353,-6539.92162226,0.00011,2]
[334138660,1722792643368,-31669.23916459,0.00011,2]
[334138707,1722792644417,-54667.01994849,0.00011,2]
[334138708,1722792644440,-1013.62851621,0.00011,2]
[334138709,1722792644453,-55020.0,0.00011,2]
[334138710,1722792644466,-25133.8655607,0.00011,2]
[334138711,1722792644480,-59669.00275466,0.00011,2]
[334138712,1722792644539,-2997.799435,0.00011,2]
[334138713,1722792644555,-1175.0,0.00011,2]
[334138717,1722792646518,-2006.59831234,0.00011,2]
[334138718,1722792646532,-2930.68941799,0.00011,2]
[334138719,1722792646546,-1099.32518863,0.00011,2]
[334138720,1722792646564,-965.71228603,0.00011,2]
[334138721,1722792646618,-508.31967261,0.00011,2]
[334138722,1722792646631,-258.90026698,0.00011,2]
[334138723,1722792646645,-8208.47197866,0.00011,2]
[334138724,1722792646664,-1714.987,0.00011,2]
[334138725,1722792646678,-3567.11591837,0.00011,2]
[334138726,1722792646728,-602.43854007,0.00011,2]
[334138727,1722792646748,-27500.00000033,0.00011,2]
[334138728,1722792646762,-13200.0,0.00011,2]
[334138729,1722792646775,-10019.09632223,0.00011,2]
[334138730,1722792647474,-600.0,0.00011,2]
[334138731,1722792647488,-715.445001,0.00011,2]
[334138732,1722792647501,-1372.08,0.00011,2]
[334138733,1722792647573,-12283.66856912,0.00011,2]
[334138734,1722792647586,-315.00000008,0.00011,2]
[334138735,1722792647600,-500.0,0.00011,2]
[334138886,1722792802700,200.0,0.00026667,120]
[334138887,1722792804958,886.10448237,0.00027,120]
[334138889,1722793318323,983.08,0.00023013,60]
[334138890,1722793402067,500.0,0.00026453,120]
[334138891,1722793413273,200.0,0.00026667,120]
[334138892,1722793558308,2000.0,0.00027,120]
[334138893,1722793591613,827.76425476,0.00027,120]
[334138894,1722793596006,2000.0,0.00027,120]
[334138895,1722793600874,169.67,0.00010311,2]
[334138897,1722793670437,227.61995131,0.00010311,2]
[334138898,1722793672874,68.37700811,0.00010311,2]
[334138899,1722793709471,2173.81865729,0.00010211,2]
[334138901,1722793721544,-1301.99545571,0.00010311,2]
[334138902,1722793721587,-158.83612492,0.00010311,2]
[334138903,1722793721628,-1534.63775422,0.00010311,2]
[334138904,1722793721672,-275.51504818,0.00010311,2]
[334138905,1722793721714,-155.0,0.00010311,2]
[334138906,1722793721754,-961.890584,0.00010311,2]
[334138907,1722793721792,-1222.86024952,0.00010311,2]
[334138908,1722793721836,-871.61874262,0.00010311,2]
[334138909,1722793721877,-425.59163485,0.00010311,2]
[334138910,1722793721997,-490.01715166,0.00010311,2]
[334138911,1722793722070,-2251.44364543,0.00010311,2]
[334138925,1722793804942,160.06,9.226e-05,2]
[334138946,1722793833133,183691.2237982,9.226e-05,2]
[334138959,1722793834379,-150.0,0.00010256,2]
[334138960,1722793834390,-300.0,0.0001031,2]
[334138961,1722793834401,-363.62565954,0.00010311,2]
[334138963,1722793834412,-342.03434046,0.00010311,2]
[334138964,1722793834425,-69.60009292,0.00010311,2]
[334138965,1722793834435,-155.17684879,0.00010311,2]
[334138966,1722793834446,-9265.63863011,0.00010311,2]
[334138967,1722793834456,-179.68390712,0.00010311,2]
[334138968,1722793834468,-485.35658426,0.00010311,2]
[334138969,1722793834478,-450.35297497,0.00010311,2]
[334138970,1722793834491,-3999.58533526,0.00010311,2]
[334138971,1722793834503,-15929.9925416,0.00010311,2]
[334138972,1722793834513,-1633.08867531,0.00010311,2]
[334138973,1722793834523,-1633.08867531,0.00010311,2]
[334138974,1722793834533,-1047.0,0.00010356,2]
[334138975,1722793834544,-306.61,0.00010403,2]
[334138976,1722793834555,-700.0,0.000108,3]
[334138977,1722793834565,-150.8736,0.0001089,2]
[334138978,1722793834575,-164.61705304,0.000109,2]
[334138979,1722793834585,-179.62485198,0.000109,2]
[334138980,1722793834596,-1500.0,0.000109,3]
[334138981,1722793834605,-172.59879283,0.000109,2]
[334138982,1722793834614,-223.10827122,0.000109,2]
[334138983,1722793834624,-150.0,0.00010959,2]
[334138984,1722793834634,-499.99,0.00010989,2]
[334138985,1722793834645,-150.0,0.00010989,2]
[334138986,1722793834655,-5259.6,0.0001099,2]
[334138987,1722793834665,-511.62,0.0001099,2]
[334138988,1722793834674,-1743.04,0.0001099,2]
[334138989,1722793834684,-792.21,0.0001099,2]
[334138990,1722793834694,-999.99,0.0001099,2]
[334138991,1722793834704,-153.35,0.0001099,2]
[334138992,1722793834720,-37277.54169498,0.00010997,2]
[334138993,1722793834743,-1518.02409611,0.00010999,2]
[334138994,1722793834762,-4815.32349322,0.00011,2]
[334138997,1722793834854,-58037.90556887,0.00011,2]
[334138999,1722793834905,-11631.4198,0.00011,2]
[334139001,1722793834917,-1731.73835147,0.00011,2]
[334139003,1722793834928,-17400.0,0.00011,2]
[334139005,1722793834939,-4511.23906819,0.00011,2]
[334139007,1722793834951,-5757.7,0.00011,2]
[334139009,1722793834962,-58184.0,0.00011,2]
[334139012,1722793834981,-459.60654107,0.00011,2]
[334139014,1722793834993,-3597.29870073,0.00011,2]
[334139015,1722793835006,-2605.7965384,0.00011,2]
[334139018,1722793835029,-462.53216332,0.00011,2]
[334139019,1722793835041,-837482.9333066,0.00011,2]
[334139020,1722793835053,-1443.6854515,0.00011,2]
[334139021,1722793835076,-295664.03076576,0.00011,2]
[334139022,1722793835087,-26414.45143345,0.00011,2]
[334139023,1722793835099,-286.95,0.00011,2]
[334139024,1722793835110,-2903.25,0.00011,2]
[334139025,1722793835121,-1282.01565883,0.00011,2]
[334139026,1722793835198,18829.20746285,9.226e-05,2]
[334139027,1722793835297,7573.35383779,9.226e-05,2]
[334139040,1722793840139,-3432.39601045,0.00011,2]
[334139042,1722793840151,-5802.0,0.00011,2]
[334139044,1722793840163,-2604.62300768,0.00011,2]
[334139046,1722793840327,-47712.63832179,0.00011,2]
[334139047,1722793840357,-39872.37163623,0.00011,2]
[334139048,1722793840411,-550.0,0.00011,2]
[334139049,1722793840445,-299.99,0.00011,2]
[334139051,1722793840455,-420.0,0.00011337,2]
[334139052,1722793840465,-521.9105533,0.00012391,2]
[334139053,1722793840475,-1705.16722866,0.00012397,2]
[334139054,1722793840486,-546.59485741,0.00012397,2]
[334139055,1722793840496,-155.64309799,0.0001246,2]
[334139056,1722793840506,-210.79978513,0.0001246,2]
[334139057,1722793840516,-282.32265259,0.0001246,2]
[334139058,1722793840526,-155.64309799,0.0001246,2]
[334139059,1722793840535,-406.87079367,0.0001246,2]
[334139060,1722793840545,-587.0,0.00012467,2]
[334139061,1722793840554,-961.36785603,0.00012498,2]
[334139062,1722793840564,-947.92262883,0.00012498,2]
[334139063,1722793840574,-250.0,0.00012614,2]
[334139064,1722793840584,-306.61,0.00012667,2]
[334139066,1722793840593,-427.34789804,0.00012681,2]
[334139067,1722793840603,-512.01697496,0.0001269,2]
[334139069,1722793840613,-328.00522683,0.00012696,2]
[334139070,1722793840622,-174.95,0.00012771,2]
[334139071,1722793840632,-926.28,0.00012912,2]
[334139072,1722793840642,-600.0,0.00013,2]
[334139073,1722793840652,-150.0,0.00013259,2]
[334139074,1722793840662,-7608.52678058,0.00013489,2]
[334139076,1722793840672,-20126.2272816,0.000138,2]
[334139078,1722793840681,-2300.0,0.000139,5]
[334139080,1722793840690,-261.81,0.00013973,2]
[334139081,1722793840700,-318.49,0.00013973,2]
[334139082,1722793840714,-166.38,0.00013973,2]
[334139083,1722793840724,-171.87,0.00013973,2]
[334139084,1722793840734,-175.06,0.00013973,2]
[334139085,1722793840744,-286.78,0.00013975,2]
[334139086,1722793840754,-172.59879281,0.00014212,2]
[334139087,1722793840763,-288.1,0.00014353,2]
[334139088,1722793840773,-636.88048517,0.000144,2]
[334139089,1722793840783,-5779.60133122,0.00014511,2]
[334139090,1722793840792,-312.047767,0.00014521,2]
[334139091,1722793840803,-174.95,0.00014899,2]
[334139092,1722793840813,-306.61,0.00014931,2]
[334139093,1722793840822,-650.0,0.00015,2]
[334139095,1722793840831,-1485.63008081,0.00015,2]
[334139097,1722793840841,-312.047767,0.00015342,2]
[334139100,1722793840851,-286.78,0.00015722,2]
[334139103,1722793840861,-288.1,0.00016147,2]
[334139106,1722793840870,-312.047767,0.00016164,2]
[334139107,1722793840880,-601.86082,0.0001656,2]
[334139108,1722793840891,-1625.75000001,0.00016711,2]
[334139109,1722793840902,-155.0,0.00016953,2]
[334139110,1722793840912,-312.047767,0.00016986,2]
[334139111,1722793840921,-990.79365412,0.00016999,2]
[334139112,1722793840930,-4103.05217891,0.00017004,2]
[334139113,1722793840940,-174.95,0.00017027,2]
[334139114,1722793840949,-306.61,0.00017195,2]
[334139115,1722793840959,-2500.85158559,0.00017259,2]
[334139116,1722793840969,-250.0,0.00017417,2]
[334139117,1722793840978,-286.78,0.00017468,2]
[334139118,1722793840988,-388.04,0.00017474,2]
[334139119,1722793840998,-172.59879281,0.00017523,2]
[334139120,1722793841008,-886.99,0.00017799,2]
[334139121,1722793841017,-312.047767,0.00017808,2]
[334139122,1722793841027,-288.1,0.00017941,2]
[334139123,1722793841040,-926.28,0.00018077,2]
[334139124,1722793841049,-155.81,0.00018598,2]
[334139125,1722793841059,-155.0,0.00018599,2]
[334139126,1722793841068,-249.70756427,0.00018599,2]
[334139127,1722793841078,-312.047767,0.0001863,2]
[334139128,1722793841089,-212.29982694,0.00018999,2]
[334139129,1722793841099,-601.86083,0.0001906,2]
[334139130,1722793841108,-174.95,0.00019156,2]
[334139131,1722793841117,-286.78,0.00019215,2]
[334139132,1722793841127,-1238.0,0.00019265,2]
[334139133,1722793841137,-211.54413421,0.00019319,2]
[334139135,1722793841146,-312.047767,0.00019452,2]
[334139137,1722793841155,-306.61,0.00019459,2]
[334139139,1722793841164,-155.0,0.00019599,2]
[334139141,1722793841174,-323.1321644,0.00019599,2]
[334139143,1722793841183,-288.1,0.00019735,2]
[334139145,1722793841193,-150.0,0.00020367,4]
[334139148,1722793841202,-1490.49541459,0.0002038,2]
[334139150,1722793841212,-261.81,0.00020447,2]
[334139152,1722793841221,-318.49,0.00020447,2]
[334139154,1722793841230,-3000.0,0.000205,2]
[334139156,1722793841240,-254.46,0.00020736,2]
[334139158,1722793841250,-1000.0,0.00020758,2]
[334139160,1722793841259,-500.0,0.00020821,2]
[334139162,1722793841269,-500.0,0.00020821,2]
[334139164,1722793841278,-172.59879281,0.00020835,2]
[334139166,1722793841287,-286.78,0.00020962,2]
[334139168,1722793841297,-201.15,0.00021031,2]
[334139170,1722793841306,-201.15,0.00021137,2]
[334139172,1722793841317,-621.0,0.00021314,2]
[334139174,1722793841326,-1552.0,0.00021314,2]
[334139176,1722793841336,-150.0,0.00021314,2]
[334139178,1722793841346,-550.0,0.00021314,2]
[334139180,1722793841357,-888.761,0.00021314,2]
[334139181,1722793841367,-679.068,0.00021314,2]
[334139183,1722793841377,-18714.298,0.00021314,2]
[334139185,1722793841386,-782.362,0.00021314,2]
[334139187,1722793841396,-543.321,0.00021314,2]
[334139189,1722793841405,-312.83,0.00021314,2]
[334139191,1722793841415,-150.0,0.00021314,2]
[334139193,1722793841426,-1075.0,0.00021314,2]
[334139195,1722793841435,-500.0,0.00021369,2]
[334139197,1722793841445,-288.1,0.00021529,2]
[334139199,1722793841455,-601.86083,0.0002156,2]
[334139201,1722793841465,-169.57,0.00021589,30]
[334139202,1722793841475,-1265.53362362,0.00021604,2]
[334139203,1722793841485,-306.61,0.00021723,2]
[334139204,1722793841494,-220448.15386466,0.0002188,7]
[334139205,1722793841504,-237417.26153528,0.0002188,2]
[334139206,1722793841514,-150.0,0.00021918,2]
[334139207,1722793841523,-7689.0,0.000223,5]
[334139208,1722793841533,-500.0,0.00022465,2]
[334139209,1722793841543,-916.0,0.000225,2]
[334139210,1722793841553,-500.0,0.00022549,2]
[334139211,1722793841563,-215.16299926,0.00022557,2]
[334139212,1722793841573,-169.40193675,0.000226,2]
[334139213,1722793841583,-82054.69841926,0.00022657,9]
[334139214,1722793841594,-151.0,0.00022657,7]
[334139215,1722793841604,-151.0,0.00022657,7]
[334139216,1722793841614,-151.0,0.00022657,7]
[334139217,1722793841623,-151.0,0.00022657,7]
[334139218,1722793841634,-3100.0,0.000227,8]
[334139219,1722793841644,-3900.0,0.000228,8]
[334139220,1722793841654,-1029.037763,0.000229,2]
[334139221,1722793841664,-700.0,0.000229,8]
[334139222,1722793841673,-99398.6711,0.00022913,2]
[334139223,1722793841683,-200.0,0.00023,2]
[334139224,1722793841692,-1501.23956867,0.00023,5]
[334139225,1722793841706,-672.16249084,0.00023,5]
[334139226,1722793841718,-39680.24669474,0.00023,5]
[334139227,1722793841730,-96167.21252149,0.00023,5]
[334139228,1722793841743,-242899.14783395,0.00023,5]
[334139229,1722793841754,-153.867246,0.00023013,9]
[334139230,1722793841764,-500.0,0.00023013,9]
[334139231,1722793841774,-247.99315908,0.00023013,9]
[334139232,1722793841784,-500.0,0.00023013,9]
[334139233,1722793841794,-500.0,0.00023013,9]
[334139234,1722793841805,-500.0,0.00023013,9]
[334139235,1722793841816,-341.64105827,0.00023013,9]
[334139236,1722793841826,-500.0,0.00023013,9]
[334139237,1722793841836,-500.0,0.00023013,9]
[334139238,1722793841846,-500.0,0.00023013,9]
[334139239,1722793841855,-500.0,0.00023013,9]
[334139240,1722793841865,-500.0,0.00023013,9]
[334139241,1722793841875,-507.8090967,0.00023013,9]
[334139242,1722793841884,-500.0,0.00023013,9]
[334139243,1722793841894,-500.0,0.00023013,9]
[334139244,1722793841904,-508.66664787,0.00023013,9]
[334139245,1722793841914,-500.0,0.00023013,9]
[334139246,1722793841924,-500.0,0.00023013,9]
[334139247,1722793841933,-500.0,0.00023013,9]
[334139248,1722793841943,-500.0,0.00023013,9]
[334139249,1722793841952,-500.0,0.00023013,9]
[334139250,1722793841962,-500.0,0.00023013,9]
[334139251,1722793841971,-500.0,0.00023013,9]
[334139252,1722793841980,-500.0,0.00023013,9]
[334139253,1722793841989,-500.0,0.00023013,9]
[334139254,1722793841998,-514.88697216,0.00023013,9]
[334139255,1722793842008,-500.0,0.00023013,9]
[334139256,1722793842018,-500.0,0.00023013,9]
[334139257,1722793842028,-300.0,0.00023013,9]
[334139258,1722793842038,-500.0,0.00023013,9]
[334139259,1722793842047,-500.0,0.00023013,9]
[334139260,1722793842057,-500.0,0.00023013,9]
[334139261,1722793842073,-500.0,0.00023013,9]
[334139262,1722793842084,-301.97612861,0.00023013,9]
[334139263,1722793842095,-500.0,0.00023013,9]
[334139264,1722793842105,-500.0,0.00023013,9]
[334139265,1722793842114,-500.0,0.00023013,9]
[334139266,1722793842128,-500.0,0.00023013,9]
[334139267,1722793842138,-500.0,0.00023013,9]
[334139268,1722793842148,-500.0,0.00023013,9]
[334139269,1722793842157,-500.91920523,0.00023013,9]
[334139270,1722793842168,-500.0,0.00023013,9]
[334139271,1722793842178,-500.0,0.00023013,9]
[334139272,1722793842187,-500.0,0.00023013,9]
[334139273,1722793842197,-500.0,0.00023013,9]
[334139274,1722793842207,-500.0,0.00023013,9]
[334139275,1722793842217,-500.0,0.00023013,9]
[334139276,1722793842226,-500.0,0.00023013,9]
[334139277,1722793842237,-500.0,0.00023013,9]
[334139278,1722793842246,-500.0,0.00023013,9]
[334139279,1722793842256,-500.0,0.00023013,9]
[334139280,1722793842266,-500.0,0.00023013,9]
[334139281,1722793842276,-500.0,0.00023013,9]
[334139282,1722793842286,-500.0,0.00023013,9]
[334139283,1722793842297,-500.0,0.00023013,9]
[334139284,1722793842309,-500.0,0.00023013,9]
[334139285,1722793842320,-500.0,0.00023013,9]
[334139286,1722793842331,-500.0,0.00023013,9]
[334139287,1722793842342,-500.0,0.00023013,9]
[334139288,1722793842353,-500.0,0.00023013,9]
[334139289,1722793842363,-500.0,0.00023013,9]
[334139290,1722793842372,-500.0,0.00023013,9]
[334139291,1722793842382,-500.0,0.00023013,9]
[334139292,1722793842391,-500.0,0.00023013,9]
[334139293,1722793842400,-500.0,0.00023013,9]
[334139294,1722793842410,-500.0,0.00023013,9]
[334139295,1722793842419,-500.0,0.00023013,9]
[334139296,1722793842429,-535.73351223,0.00023013,9]
[334139297,1722793842438,-500.0,0.00023013,9]
[334139298,1722793842447,-151.0,0.00023013,7]
[334139299,1722793842456,-151.0,0.00023013,7]
[334139300,1722793842468,-500.0,0.00023013,9]
[334139301,1722793842478,-500.0,0.00023013,9]
[334139302,1722793842487,-500.0,0.00023013,9]
[334139303,1722793842497,-500.0,0.00023013,9]
[334139304,1722793842507,-500.0,0.00023013,9]
[334139305,1722793842516,-500.0,0.00023013,9]
[334139306,1722793842525,-500.0,0.00023013,9]
[334139307,1722793842535,-500.0,0.00023013,9]
[334139308,1722793842545,-500.0,0.00023013,9]
[334139309,1722793842555,-500.0,0.00023013,9]
[334139310,1722793842567,-500.0,0.00023013,9]
[334139311,1722793842592,-500.0,0.00023013,9]
[334139312,1722793842602,-500.0,0.00023013,9]
[334139313,1722793842611,-500.0,0.00023013,9]
[334139314,1722793842620,-500.0,0.00023013,9]
[334139315,1722793842630,-500.0,0.00023013,9]
[334139316,1722793842639,-500.0,0.00023013,9]
[334139317,1722793842649,-500.0,0.00023013,9]
[334139318,1722793842658,-500.0,0.00023013,9]
[334139319,1722793842667,-500.0,0.00023013,9]
[334139320,1722793842677,-500.0,0.00023013,9]
[334139321,1722793842686,-500.0,0.00023013,9]
[334139322,1722793842696,-500.0,0.00023013,9]
[334139323,1722793842706,-500.0,0.00023013,9]